bitfinex-derivatives/quotes_SOLF0:USTF0_20250318
["timestamp","ask_amount","ask_price","bid_price","bid_amount"]
[1742285643294,17.8445957,125.03,125.01,293.98010836]
[1742285643591,9.78779813,125.02,125.01,293.98010836]
[1742285645891,9.8017038,125.02,125.01,293.98010836]
[1742285647793,4.09445005,125.02,125.01,293.98010836]
[1742285648483,5.70880303,125.02,125.01,293.98010836]
[1742285648992,8.05679757,125.03,125.01,293.98010836]
[1742285649189,7.9993,125.02,125.01,285.98040836]
[1742285649393,17.81168914,125.02,125.01,285.98040836]
[1742285649594,9.81238914,125.02,125.01,257.34040836]
[1742285649794,9.81238914,125.02,125.01,265.34010836]
[1742285651693,17.81168914,125.02,125.01,257.34040836]
[1742285651888,17.81168914,125.02,125.01,244.05848404]
[1742285653297,17.81745739,125.02,125.01,244.05848404]
[1742285654800,17.81745739,125.02,125.01,252.05848404]
[1742285655100,17.81745739,125.02,125.01,244.05848404]
[1742285655301,17.82703688,125.02,125.01,244.05848404]
[1742285657902,17.82817594,125.02,125.01,244.05848404]
[1742285663804,23.0997948,125.02,125.01,244.05848404]
[1742285665400,23.23162686,125.02,125.01,244.05848404]
[1742285665802,15.23232686,125.02,125.01,265.34040836]
[1742285671409,15.23549631,125.02,125.01,265.34040836]
[1742285672710,15.24180791,125.02,125.01,265.34040836]
[1742285675414,11.12606396,125.02,125.01,265.34040836]
[1742285675615,15.24162879,125.02,125.01,265.34040836]
[1742285677716,15.24054546,125.02,125.01,265.34040836]
[1742285678613,24.84510206,125.02,125.01,265.34040836]
[1742285678817,24.84510206,125.02,125.01,250.94280164]
[1742285679720,15.24054546,125.02,125.01,250.94280164]
[1742285681519,15.20835557,125.02,125.01,250.94280164]
[1742285683624,15.20916932,125.02,125.01,250.94280164]
[1742285685526,0.05809757,125.03,125.02,7.9993]
[1742285685724,9.99732062,125.03,125.02,21.28122432]
[1742285686225,15.37553679,125.03,125.02,21.28122432]
[1742285686425,15.60208511,125.06,125.05,7.9974]
[1742285686629,15.60208511,125.06,125.05,21.27932432]
[1742285687030,52.13861068,125.08,125.06,7.9965]
[1742285687626,52.19331819,125.08,125.06,8.05627951]
[1742285688032,52.19331819,125.08,125.06,0.05977951]
[1742285688233,7.9961,125.07,125.06,0.05977951]
[1742285688824,52.19331819,125.08,125.06,8.05657951]
[1742285689136,8.05060751,125.08,125.06,8.05657951]
[1742285689628,8.05060751,125.08,125.06,0.05977951]
[1742285691036,7.9961,125.07,125.06,0.05977951]
[1742285692036,7.9961,125.07,125.06,263.99977951]
[1742285692440,0.05470751,125.08,125.06,277.28170383]
[1742285692632,0.05470751,125.08,125.06,305.60170383]
[1742285693638,0.05470751,125.08,125.06,313.59800383]
[1742285693938,8.05020751,125.08,125.06,313.59800383]
[1742285694128,0.05470751,125.08,125.06,263.99977951]
[1742285694438,7.9961,125.07,125.06,263.99977951]
[1742285698339,13.65193616,125.07,125.06,263.99977951]
[1742285698940,18.94404162,125.07,125.06,263.99977951]
[1742285702134,18.94665081,125.07,125.06,263.99977951]
[1742285703734,18.94898654,125.07,125.06,263.99977951]
[1742285703933,28.47944861,125.07,125.06,249.60478578]
[1742285705050,18.94898654,125.07,125.06,249.60478578]
[1742285705240,18.94898654,125.07,125.06,229.60984786]
[1742285705846,18.94898654,125.07,125.06,209.61416223]
[1742285706040,13.29054119,125.07,125.06,209.61416223]
[1742285707538,7.9961,125.07,125.06,209.61416223]
[1742285710044,7.9968,125.06,125.05,0.05439442]
[1742285710248,49.61872432,125.06,125.05,0.05439442]
[1742285710442,51.69662432,125.06,125.05,0.05439442]
[1742285712943,51.67662432,125.06,125.05,0.05439442]
[1742285717953,51.67662432,125.06,125.05,9.442e-05]
[1742285722252,7.9987,125.03,125.02,263.92]
[1742285722453,13.62034403,125.03,125.02,263.92]
[1742285723853,13.62072385,125.03,125.02,263.92]
[1742285725762,13.61985656,125.03,125.02,263.92]
[1742285727758,5.62065862,125.03,125.02,263.92]
[1742285728362,13.61935862,125.03,125.02,263.92]
[1742285729757,7.9987,125.03,125.02,263.92]
[1742285729964,13.62326849,125.03,125.02,263.92]
[1742285731764,7.9987,125.03,125.02,263.92]
[1742285732059,26.90512853,125.03,125.02,263.92]
[1742285733765,26.90548292,125.03,125.02,263.92]
[1742285734259,13.6235586,125.03,125.02,263.92]
[1742285735560,5.6248586,125.03,125.02,271.9193]
[1742285735863,5.62521408,125.03,125.02,285.20122432]
[1742285736766,2.30411408,125.03,125.02,285.20122432]
[1742285736960,0.06130121,125.04,125.03,7.9987]
[1742285737265,0.06130121,125.04,125.03,21.28062432]
[1742285737566,7.9964,125.07,125.05,7.9973]
[1742285738663,8.05210431,125.07,125.05,8.05544879]
[1742285738864,7.9968,125.06,125.05,0.05814879]
[1742285740465,8.05210431,125.07,125.05,8.05524879]
[1742285742870,0.05570431,125.07,125.06,7.9968]
[1742285743069,0.05570431,125.07,125.06,21.27872432]
[1742285743272,0.05570431,125.07,125.06,49.59872432]
[1742285746169,0.05570431,125.07,125.06,51.69342432]
[1742285748171,11.03567767,125.12,125.06,43.69662432]
[1742285748377,11.03567767,125.12,125.1,7.994]
[1742285748769,7.9932,125.12,125.1,7.994]
[1742285749372,7.9932,125.12,125.1,8.05472676]
[1742285749373,8.04775998,125.12,125.1,8.05472676]
[1742285750883,8.04775998,125.12,125.1,0.06072676]
[1742285751181,8.04775998,125.12,125.1,13.34265108]
[1742285751386,8.04775998,125.12,125.1,21.33675108]
[1742285752379,0.05455998,125.12,125.11,7.9936]
[1742285752578,0.05455998,125.12,125.11,49.59552432]
[1742285752776,13.28192432,125.17,125.11,41.60192432]
[1742285752982,7.9913,125.15,125.12,21.27432432]
[1742285753189,13.28192432,125.17,125.12,21.27432432]
[1742285753488,7.992,125.14,125.11,49.59512432]
[1742285753884,13.28192432,125.16,125.11,49.59512432]
[1742285754186,8.04361775,125.14,125.11,49.65010489]
[1742285754884,0.05171775,125.14,125.12,21.27472432]
[1742285755188,0.05171775,125.14,125.13,13.28192432]
[1742285756784,8.04331775,125.14,125.13,13.28192432]
[1742285757979,7.9923,125.13,125.12,41.60192432]
[1742285759185,7.9923,125.13,125.12,28.32]
[1742285761094,7.9929,125.12,125.11,0.05498057]
[1742285761293,21.27482432,125.12,125.11,0.05498057]
[1742285761498,41.58192432,125.12,125.09,263.92]
[1742285761793,7.9942,125.1,125.09,263.92]
[1742285762790,0.05137933,125.11,125.09,277.20192432]
[1742285762982,0.05137933,125.11,125.1,13.28192432]
[1742285763583,0.05137933,125.11,125.1,41.58192432]
[1742285763997,0.05137933,125.11,125.1,28.3]
[1742285764390,8.04537933,125.11,125.09,263.97197856]
[1742285764695,0.05137933,125.11,125.09,263.97197856]
[1742285764991,7.9942,125.1,125.09,263.97197856]
[1742285766786,7.9973,125.06,125.04,263.78]
[1742285766990,28.32,125.08,125.04,263.78]
[1742285767192,41.60192432,125.08,125.04,263.78]
[1742285767493,28.32,125.08,125.04,263.78]
[1742285767894,28.32,125.08,125.04,277.06192432]
[1742285768095,0.05751805,125.07,125.05,0.05607396]
[1742285768495,7.9971,125.06,125.05,0.05607396]
[1742285770696,8.05391805,125.07,125.05,0.05607396]
[1742285770896,8.05391805,125.07,125.05,13.33799828]
[1742285771800,7.9968,125.06,125.05,13.33799828]
[1742285772100,7.9968,125.06,125.05,0.05607396]
[1742285773199,8.05391805,125.07,125.05,0.05607396]
[1742285774204,8.05391805,125.07,125.05,13.33799828]
[1742285774801,0.05751805,125.07,125.05,21.33519828]
[1742285776096,0.05751805,125.07,125.06,7.9968]
[1742285777104,0.05751805,125.07,125.06,21.27872432]
[1742285778598,7.9941,125.11,125.08,7.9953]
[1742285778802,28.34,125.12,125.08,21.27722432]
[1742285779300,7.994,125.11,125.08,21.27722432]
[1742285779504,7.994,125.11,125.09,7.9948]
[1742285779704,0.05836366,125.11,125.09,13.33560612]
[1742285779906,7.9942,125.1,125.09,0.0536818]
[1742285781703,21.27612432,125.1,125.09,0.0536818]
[1742285783409,21.27612432,125.1,125.09,8.18e-05]
[1742285783607,23.42122432,125.1,125.09,8.18e-05]
[1742285787716,25.48632432,125.1,125.09,8.18e-05]
[1742285788810,27.61212432,125.1,125.09,8.18e-05]
[1742285806919,7.9974,125.05,125.04,263.78]
[1742285808022,23.51311951,125.05,125.04,229.38622623]
[1742285808227,36.79504383,125.05,125.04,229.38622623]
[1742285809022,21.27932432,125.05,125.04,229.38622623]
[1742285810619,7.9974,125.05,125.04,229.38622623]
[1742285812928,21.27932432,125.05,125.04,229.38622623]
[1742285813525,7.998,125.04,125.03,0.05850108]
[1742285813722,49.59992432,125.04,125.03,0.05850108]
[1742285814728,36.318,125.04,125.03,0.05850108]
[1742285815625,7.998,125.04,125.03,0.05850108]
[1742285817327,36.318,125.04,125.03,0.05850108]
[1742285819430,49.59992432,125.04,125.03,0.05850108]
[1742285822333,8.0,125.01,125.0,263.92]
[1742285822532,21.28192432,125.01,125.0,263.92]
[1742285825235,8.0006,125.0,124.99,0.05942157]
[1742285825432,49.60252432,125.0,124.99,0.05942157]
[1742285830747,36.3206,125.0,124.99,0.05942157]
[1742285832643,8.0003,125.01,124.99,0.05942157]
[1742285832837,28.34,125.0,124.99,0.05942157]
[1742285833337,8.0003,125.01,124.99,0.05942157]
[1742285833536,49.67987605,125.02,124.99,0.05942157]
[1742285833840,36.39795173,125.02,124.99,8.06062157]
[1742285834237,0.05845173,125.02,124.99,13.34134589]
[1742285834540,0.05845173,125.02,125.0,8.0005]
[1742285836052,8.05795173,125.02,125.0,8.0005]
[1742285836549,8.05795173,125.02,125.0,10.0287]
[1742285837146,0.05845173,125.02,125.01,8.0]
[1742285837652,0.05845173,125.02,125.0,2.0282]
[1742285838040,8.0,125.01,125.0,2.0282]
[1742285840439,8.0006,125.0,124.99,0.05942157]
[1742285841344,8.0025,124.97,124.96,264.0]
[1742285841542,13.28192432,124.97,124.96,264.0]
[1742285842846,36.39691041,124.98,124.96,264.0]
[1742285843054,28.39461041,124.98,124.96,264.0]
[1742285844253,28.39461041,124.98,124.96,272.0027]
[1742285844451,28.39461041,124.98,124.96,264.0]
[1742285844652,0.05461041,124.98,124.96,264.0]
[1742285844958,0.05461041,124.98,124.97,8.0025]
[1742285845951,41.68192432,125.01,124.98,8.0013]
[1742285846154,8.0009,125.0,124.96,279.39472432]
[1742285846550,13.28192432,124.99,124.96,266.1128]
[1742285846757,41.74192432,124.99,124.96,264.0]
[1742285847154,41.79834713,124.99,124.96,264.05775623]
[1742285847357,8.0025,124.97,124.96,264.05775623]
[1742285848158,8.0022,124.98,124.96,264.05775623]
[1742285849757,8.0025,124.97,124.96,264.05775623]
[1742285852265,8.0022,124.98,124.96,264.05775623]
[1742285852460,41.79834713,124.99,124.96,264.05775623]
[1742285852860,8.0023,124.98,124.96,264.05775623]
[1742285853052,41.79834713,124.99,124.96,264.05775623]
[1742285853258,0.05642281,124.99,124.97,8.0024]
[1742285853762,0.05642281,124.99,124.97,8.0022]
[1742285854658,0.05642281,124.99,124.96,277.33968055]
[1742285855759,0.05642281,124.99,124.98,8.0019]
[1742285859466,0.05642281,124.99,124.97,28.44]
[1742285859961,0.05642281,124.99,124.98,8.0019]
[1742285864562,0.05642281,124.99,124.97,28.44]
[1742285864770,0.05642281,124.99,124.97,36.4423]
[1742285864958,0.05642281,124.99,124.97,28.44]
[1742285865158,0.05642281,124.99,124.98,8.0019]
[1742285872769,0.05642281,124.99,124.98,21.28382432]
[1742285881272,2.281e-05,124.99,124.98,21.28382432]
[1742285881588,87.939435,125.06,124.98,23.29252432]
[1742285881767,87.939435,125.06,125.01,13.28192432]
[1742285881971,95.936735,125.06,125.02,264.02]
[1742285882173,74.65751068,125.06,125.02,277.30192432]
[1742285882376,44.14271068,125.06,125.02,277.30192432]
[1742285882677,0.06022863,125.05,125.04,7.998]
[1742285883768,0.06022863,125.05,125.04,21.27992432]
[1742285884975,0.06022863,125.05,125.03,41.65508388]
[1742285885277,0.06022863,125.05,125.03,28.37315956]
[1742285885877,8.05792863,125.05,125.03,28.37315956]
[1742285887281,7.998,125.04,125.03,28.37315956]
[1742285887475,7.998,125.04,125.03,0.05315956]
[1742285887881,21.27992432,125.04,125.03,0.05315956]
[1742285889381,8.0009,125.0,124.98,263.96]
[1742285889975,2.1773,125.05,124.99,28.32]
[1742285890174,2.1773,125.05,125.01,13.28192432]
[1742285890475,10.1501,125.06,125.02,7.9987]
[1742285890681,0.05907322,125.04,125.02,8.0592234]
[1742285890880,0.05907322,125.04,125.02,0.0605234]
[1742285891074,8.05717322,125.04,125.02,0.0605234]
[1742285891482,0.05907322,125.04,125.02,0.0605234]
[1742285891784,7.9987,125.03,125.02,0.0605234]
[1742285893178,49.60062432,125.03,125.02,0.0605234]
[1742285894577,8.0009,125.0,124.98,263.96]
[1742285894774,13.28192432,125.01,124.98,263.96]
[1742285894973,13.28192432,125.0,124.98,263.96]
[1742285895183,8.0012,124.99,124.98,263.96]
[1742285895782,21.33592097,125.0,124.98,263.96]
[1742285895984,8.05399665,125.0,124.98,263.96]
[1742285896788,49.60312432,124.99,124.98,263.96]
[1742285898089,8.0019,124.98,124.97,0.06089569]
[1742285898678,21.28382432,124.98,124.97,0.06089569]
[1742285899689,8.0019,124.98,124.97,0.06089569]
[1742285899995,36.3216,124.99,124.97,0.06089569]
[1742285900488,8.0019,124.98,124.97,0.06089569]
[1742285901484,0.05309665,125.0,124.97,8.06329569]
[1742285901689,13.33502097,125.0,124.97,0.06089569]
[1742285902889,8.0019,124.98,124.97,0.06089569]
[1742285906092,21.28382432,124.98,124.97,0.06089569]
[1742285906390,25.46372432,124.98,124.97,0.06089569]
[1742285909095,6.69405881,125.0,124.97,0.06089569]
[1742285909488,8.0015,124.99,124.97,0.06089569]
[1742285909798,6.69405881,125.0,124.97,0.06089569]
[1742285910195,8.0019,124.98,124.97,0.06089569]
[1742285910397,14.64286216,124.98,124.97,0.06089569]
[1742285915212,25.40792432,124.98,124.97,0.06089569]
[1742285918616,25.40602432,124.98,124.85,16.0203]
[1742285918914,13.28192432,124.95,124.9,13.28192432]
[1742285919114,36.6048,124.94,124.9,21.28872432]
[1742285919907,8.05684733,124.93,124.91,0.05055285]
[1742285921512,8.0057,124.92,124.91,0.05055285]
[1742285922009,0.05174733,124.93,124.91,0.05055285]
[1742285922215,8.05724733,124.93,124.91,0.05055285]
[1742285922414,0.05174733,124.93,124.91,0.05055285]
[1742285923318,8.0057,124.92,124.91,0.05055285]
[1742285926610,49.82762432,124.92,124.91,5.285e-05]
[1742285933615,21.28762432,124.92,124.91,5.285e-05]
[1742285933820,0.05174733,124.93,124.91,5.285e-05]
[1742285934320,0.05174733,124.93,124.92,8.0057]
[1742285936818,0.05174733,124.93,124.91,5.285e-05]
[1742285937214,8.0057,124.92,124.91,5.285e-05]
[1742285938521,21.28762432,124.92,124.91,5.285e-05]
[1742285940426,36.65704733,124.93,124.91,5.285e-05]
[1742285941019,8.0057,124.92,124.91,5.285e-05]
[1742285941417,21.28762432,124.92,124.91,5.285e-05]
[1742285942024,8.0057,124.92,124.91,5.285e-05]
[1742285947928,49.93897165,124.93,124.91,5.285e-05]
[1742285948322,36.65704733,124.93,124.91,5.285e-05]
[1742285948523,36.65704733,124.93,124.91,8.00605285]
[1742285948726,0.05174733,124.93,124.91,5.285e-05]
[1742285949327,0.05174733,124.93,124.92,8.0057]
[1742285949529,0.05174733,124.93,124.92,21.28762432]
[1742285949725,0.05174733,124.93,124.92,285.50762432]
[1742285950419,0.05174733,124.93,124.92,314.10762432]
[1742285952628,28.58,124.99,124.92,312.16382432]
[1742285952828,28.58,124.99,124.95,13.28192432]
[1742285953728,8.05487102,124.98,124.96,8.05490018]
[1742285953928,0.05277102,124.98,124.97,13.28192432]
[1742285954329,0.05277102,124.98,124.97,21.28442432]
[1742285958335,41.84192432,125.04,124.99,8.0007]
[1742285958536,7.9997,125.02,124.99,285.42262432]
[1742285958831,7.9997,125.02,124.99,277.42192432]
[1742285959038,7.9997,125.02,125.0,8.0005]
[1742285959537,8.05408478,125.02,125.0,8.06059597]
[1742285959736,0.05438478,125.02,125.0,8.06059597]
[1742285960131,0.05438478,125.02,125.0,36.62059597]
[1742285961439,8.05378478,125.02,125.0,36.62059597]
[1742285962835,0.05438478,125.02,125.01,8.0]
[1742285963043,0.05438478,125.02,125.01,21.28192432]
[1742285963736,0.05438478,125.02,125.01,13.28192432]
[1742285965044,0.05438478,125.02,125.01,21.28192432]
[1742285965740,0.05438478,125.02,125.01,13.28192432]
[1742285966739,8.05368478,125.02,125.01,13.28192432]
[1742285970847,8.0,125.01,125.0,0.06009597]
[1742285979258,21.28192432,125.01,125.0,9.597e-05]
[1742285997473,8.0032,124.96,124.95,264.02]
[1742285998570,8.05557432,124.97,124.95,264.02]
[1742285999075,0.05267432,124.97,124.95,277.30192432]
[1742285999774,0.05267432,124.97,124.96,8.0032]
[1742286000373,0.05267432,124.97,124.96,21.28512432]
[1742286000674,0.05267432,124.97,124.96,49.64512432]
[1742286000876,36.3603,125.01,124.99,8.0012]
[1742286001076,28.36,125.01,124.96,41.64192432]
[1742286001374,41.64192432,125.01,124.96,41.64192432]
[1742286001575,41.64192432,125.01,124.96,49.64472432]
[1742286001770,41.64192432,125.01,124.96,41.64192432]
[1742286001970,41.64192432,125.01,124.96,28.36]
[1742286002275,8.0022,124.98,124.97,0.05055187]
[1742286003875,8.0016,124.99,124.97,8.05305187]
[1742286004178,0.05460917,125.0,124.97,0.05055187]
[1742286004980,8.05580917,125.0,124.98,8.0019]
[1742286005177,0.05460917,125.0,124.97,0.05055187]
[1742286005374,8.0015,124.99,124.97,8.05275187]
[1742286007277,8.0019,124.98,124.97,0.05055187]
[1742286008584,8.0019,124.98,124.97,8.05305187]
[1742286008779,8.0019,124.98,124.97,0.05055187]
[1742286012580,36.3416,124.99,124.97,0.05055187]
[1742286013176,36.3416,124.99,124.97,8.05295187]
[1742286014088,36.3416,124.99,124.97,0.05055187]
[1742286014788,8.0019,124.98,124.97,0.05055187]
[1742286016888,36.3415,124.99,124.97,8.05305187]
[1742286018987,8.0019,124.98,124.97,0.05055187]
[1742286020286,36.3416,124.99,124.97,8.05305187]
[1742286020588,0.05460917,125.0,124.97,0.05055187]
[1742286021488,8.0015,124.99,124.97,8.05275187]
[1742286022281,8.0019,124.98,124.97,0.05055187]
[1742286023184,8.0019,124.98,124.97,8.05305187]
[1742286023391,8.0016,124.99,124.97,8.05305187]
[1742286023786,8.0019,124.98,124.97,8.05305187]
[1742286023988,8.0019,124.98,124.97,0.05055187]
[1742286029095,41.62192432,124.99,124.89,13.28192432]
[1742286029294,13.28192432,124.94,124.9,349.12327633]
[1742286029794,8.0062,124.92,124.9,349.12327633]
[1742286030188,13.28192432,124.93,124.9,349.12327633]
[1742286030489,8.061378,124.92,124.9,349.16987401]
[1742286031293,5.8452855,124.91,124.9,349.16987401]
[1742286031496,5.8452855,124.91,124.9,264.12659768]
[1742286034788,27.13360982,124.91,124.9,264.12659768]
[1742286035192,27.12247225,124.91,124.9,264.12659768]
[1742286035491,27.12226724,124.91,124.9,264.12659768]
[1742286037999,27.12226724,124.91,124.9,0.04659768]
[1742286039393,8.0089,124.87,124.86,264.18]
[1742286039691,27.12476724,124.87,124.86,264.18]
[1742286039890,5.83394292,124.87,124.86,264.18]
[1742286041298,13.84284292,124.87,124.86,264.18]
[1742286042299,5.83394292,124.87,124.86,264.18]
[1742286042894,5.83394292,124.87,124.86,272.1896]
[1742286043195,5.8084402,124.87,124.86,272.1896]
[1742286045299,0.05664947,124.88,124.87,8.0089]
[1742286045502,5.86149483,124.88,124.87,8.0089]
[1742286046203,5.86149483,124.88,124.86,272.1893]
[1742286046502,5.80484536,124.87,124.86,272.1893]
[1742286048297,5.80484536,124.87,124.86,264.18]
[1742286049005,13.81374536,124.87,124.86,264.18]
[1742286049503,5.80484536,124.87,124.86,272.1896]
[1742286049703,5.80484536,124.87,124.86,264.18]
[1742286050500,13.81374536,124.87,124.86,264.18]
[1742286050904,5.80484536,124.87,124.86,264.18]
[1742286051402,5.80073263,124.87,124.86,264.18]
[1742286052704,13.80963263,124.87,124.86,264.18]
[1742286052905,5.80073263,124.87,124.86,264.18]
[1742286054004,13.80963263,124.87,124.86,264.18]
[1742286054710,5.80073263,124.87,124.86,264.18]
[1742286055802,5.80073263,124.87,124.86,272.1896]
[1742286056204,5.80073263,124.87,124.86,285.47152432]
[1742286056397,5.80073263,124.87,124.86,272.1896]
[1742286059010,0.05664947,124.88,124.87,8.0089]
[1742286059208,5.8586399,124.88,124.87,8.0089]
[1742286060312,5.8586399,124.88,124.87,21.29082432]
[1742286060512,379.0065,124.96,124.9,8.0068]
[1742286060810,13.28192432,124.93,124.88,13.28192432]
[1742286061110,8.0066,124.91,124.88,13.28192432]
[1742286061306,13.28192432,124.9,124.86,264.18]
[1742286061505,8.0079,124.89,124.86,264.18]
[1742286061711,0.05603113,124.89,124.88,8.0083]
[1742286062011,8.0083,124.88,124.87,0.05435127]
[1742286066214,0.05603113,124.89,124.87,0.05435127]
[1742286066415,0.05603113,124.89,124.87,13.33627559]
[1742286066713,0.05603113,124.89,124.88,8.0083]
[1742286066916,0.05603113,124.89,124.87,13.33627559]
[1742286067314,0.05603113,124.89,124.88,8.0083]
[1742286068016,0.05603113,124.89,124.88,36.3683]
[1742286071722,0.05603113,124.89,124.88,8.0083]
[1742286072626,5.81569338,124.89,124.88,8.0083]
[1742286073025,5.81569338,124.89,124.88,21.29022432]
[1742286073525,5.8193575,124.89,124.88,21.29022432]
[1742286078229,5.73660008,124.89,124.88,21.29022432]
[1742286078528,5.736725,124.89,124.88,21.29022432]
[1742286078729,0.05603113,124.89,124.88,21.29022432]
[1742286079726,0.05603113,124.89,124.88,8.0083]
[1742286080033,5.73797533,124.89,124.87,49.70487559]
[1742286080222,5.6819442,124.88,124.87,49.70487559]
[1742286087336,0.05603113,124.89,124.88,8.0083]
[1742286087636,5.73595428,124.89,124.88,8.0083]
[1742286089533,5.73553813,124.89,124.88,8.0083]
[1742286090530,13.28192432,124.96,124.93,8.0048]
[1742286090738,5.6784808,124.95,124.93,8.0048]
[1742286091039,41.64192432,124.96,124.93,8.0048]
[1742286091638,8.0043,124.95,124.93,8.0048]
[1742286091841,8.0043,124.95,124.93,8.05807395]
[1742286093939,0.05483085,124.96,124.93,0.05327395]
[1742286094245,13.28192432,124.95,124.93,0.05327395]
[1742286094439,8.0044,124.94,124.93,0.05327395]
[1742286097043,21.28602432,124.95,124.93,8.05837395]
[1742286097240,28.41483085,124.96,124.93,8.05837395]
[1742286097543,0.05483085,124.96,124.95,8.0038]
[1742286097734,0.05483085,124.96,124.95,21.28572432]
[1742286108645,8.0009,125.0,124.98,8.0016]
[1742286108938,5.5832076,124.99,124.98,285.36352432]
[1742286109637,5.58348824,124.99,124.98,285.36352432]
[1742286110244,8.05803375,125.0,124.98,285.36352432]
[1742286110443,5.58505522,124.99,124.98,272.0816]
[1742286110950,5.58505522,124.99,124.98,264.08]
[1742286111249,13.58625522,124.99,124.98,264.08]
[1742286114240,26.86885745,124.99,124.98,264.08]
[1742286114537,30.95295745,124.99,124.98,264.08]
[1742286115045,8.0019,124.98,124.97,0.05775483]
[1742286115245,47.20765745,124.98,124.94,260.7369]
[1742286115446,13.28192432,124.95,124.94,260.7369]
[1742286115649,47.20765745,124.95,124.94,250.7664]
[1742286115944,55.21145745,124.95,124.94,244.1194]
[1742286116347,55.21383646,124.95,124.94,244.1194]
[1742286117349,55.21485349,124.95,124.94,244.1194]
[1742286118249,55.21534229,124.95,124.94,244.1194]
[1742286120455,8.0044,124.94,124.93,0.05457507]
[1742286120651,13.59401797,124.94,124.93,0.05457507]
[1742286121454,26.87594229,124.94,124.93,0.05457507]
[1742286121650,13.59401797,124.94,124.93,0.05457507]
[1742286121858,5.58961797,124.94,124.93,0.05457507]
[1742286122254,5.58961797,124.94,124.93,13.33649939]
[1742286123159,5.58961797,124.94,124.93,21.34159939]
[1742286123659,5.58961797,124.94,124.93,8.05967507]
[1742286123855,13.59401797,124.94,124.93,0.05457507]
[1742286124463,13.59401797,124.94,124.9,277.36192432]
[1742286124464,8.0053,124.93,124.9,264.08]
[1742286124671,5.58961797,124.92,124.9,264.08]
[1742286124968,5.58961797,124.91,124.9,264.08]
[1742286125667,13.59601797,124.91,124.9,264.08]
[1742286125968,5.58961797,124.91,124.9,264.08]
[1742286126266,5.59183838,124.91,124.9,264.08]
[1742286126760,5.59183838,124.91,124.9,272.087]
[1742286126963,5.59183838,124.91,124.9,285.36892432]
[1742286127165,5.59183838,124.91,124.9,313.70892432]
[1742286128367,0.05601473,124.92,124.91,8.0064]
[1742286128560,5.64949355,124.92,124.91,8.0064]
[1742286129069,5.64949355,124.92,124.9,313.70862432]
[1742286129271,5.59347882,124.91,124.9,292.42]
[1742286129469,5.59347882,124.91,124.9,264.08]
[1742286129769,13.59987882,124.91,124.9,264.08]
[1742286132970,5.59347882,124.91,124.9,264.08]
[1742286133179,5.59347882,124.91,124.9,277.36192432]
[1742286133670,5.59347882,124.91,124.9,285.36892432]
[1742286134174,0.05601473,124.92,124.9,277.36192432]
[1742286134370,0.05601473,124.92,124.91,49.62832432]
[1742286134570,5.6500162,124.92,124.91,49.62832432]
[1742286134974,80.48551068,124.97,124.95,8.0037]
[1742286136166,44.20139746,124.97,124.96,8.0032]
[1742286137374,0.05868678,124.97,124.95,8.06214221]
[1742286139879,0.05868678,124.97,124.96,272.1432]
[1742286141482,0.05868678,124.97,124.96,264.14]
[1742286141778,8.06118678,124.97,124.96,264.14]
[1742286142080,0.05868678,124.97,124.96,264.14]
[1742286142478,0.05868678,124.97,124.96,272.1432]
[1742286148079,0.05868678,124.97,124.96,264.14]
[1742286148283,8.06118678,124.97,124.96,264.14]
[1742286148984,0.05868678,124.97,124.96,272.1432]
[1742286150586,8.0002,125.01,124.99,8.001]
[1742286150989,28.34,125.02,124.99,8.001]
[1742286151287,36.3396,125.02,124.97,28.34]
[1742286151687,0.06021219,125.01,124.98,0.05984301]
[1742286152484,0.06021219,125.01,124.99,8.0012]
[1742286152686,0.06021219,125.01,124.98,0.05984301]
[1742286153088,0.06021219,125.01,125.0,8.0006]
[1742286153986,44.14271068,125.03,125.02,7.9993]
[1742286154183,44.14271068,125.03,125.02,272.0393]
[1742286155286,0.05345241,125.04,125.02,272.0393]
[1742286155590,8.05155241,125.04,125.02,264.04]
[1742286155787,0.05345241,125.04,125.02,264.04]
[1742286156690,8.05185241,125.04,125.02,264.04]
[1742286157084,0.05345241,125.04,125.03,36.3387]
[1742286157286,52.13911068,125.07,125.03,41.6046098]
[1742286157693,52.13911068,125.07,125.03,49.6029098]
[1742286157893,7.9964,125.07,125.03,41.6046098]
[1742286158191,57.40732048,125.09,125.03,41.6046098]
[1742286158391,0.05571235,125.06,125.04,0.05221256]
[1742286158789,7.9974,125.05,125.04,0.05221256]
[1742286159690,0.05571235,125.06,125.04,0.05221256]
[1742286160089,0.05571235,125.06,125.04,8.04981256]
[1742286160492,0.05571235,125.06,125.04,0.05221256]